bitfinex/quotes_BTCUSD_20251205
["timestamp","ask_amount","ask_price","bid_price","bid_amount"]
[1764953224917,0.00011927,88640.0,88639.0,0.31132598]
[1764953225136,0.00011927,88640.0,88639.0,0.25971422]
[1764953225515,0.00011927,88640.0,88639.0,0.35544422]
[1764953225717,0.02898132,88699.0,88639.0,0.35544422]
[1764953225718,0.01127675,88678.0,88667.0,0.01127815]
[1764953225977,0.00031911,88670.0,88669.0,0.2829597]
[1764953226234,0.00031911,88670.0,88669.0,0.33858269]
[1764953226398,0.0002,88680.0,88669.0,0.33858269]
[1764953226399,0.0002,88680.0,88679.0,0.22553253]
[1764953226566,0.00059695,88680.0,88679.0,0.22553253]
[1764953226770,0.00059695,88680.0,88679.0,0.24433253]
[1764953227016,0.00059695,88680.0,88679.0,0.41185867]
[1764953227172,0.00059695,88680.0,88671.0,0.01127764]
[1764953227173,0.00220982,88680.0,88669.0,0.12430261]
[1764953227378,0.00059695,88680.0,88678.0,0.2255329]
[1764953227747,0.00059695,88680.0,88679.0,0.22553253]
[1764953227946,0.00059695,88680.0,88679.0,0.32126253]
[1764953228099,0.00059695,88680.0,88679.0,0.22553253]
[1764953228298,0.00059695,88680.0,88679.0,0.39418719]
[1764953229044,0.00059695,88680.0,88679.0,0.29845719]
[1764953229325,0.00059695,88680.0,88679.0,0.39418719]
[1764953229846,0.00059695,88680.0,88679.0,0.29845719]
[1764953230063,0.00059695,88680.0,88679.0,0.22553253]
[1764953230382,0.00059695,88680.0,88679.0,0.22653253]
[1764953230582,0.00059695,88680.0,88679.0,0.001]
[1764953231025,0.01127662,88679.0,88674.0,0.01127726]
[1764953231202,0.00059695,88680.0,88677.0,0.01127688]
[1764953231587,0.00059695,88680.0,88673.0,0.01127738]
[1764953231588,0.38611994,88680.0,88679.0,0.003]
[1764953231785,0.38611994,88680.0,88658.0,0.01127929]
[1764953231786,0.38773281,88680.0,88658.0,0.01127929]
[1764953231993,0.01127777,88670.0,88665.0,0.0112784]
[1764953232200,0.01127802,88668.0,88660.0,0.01127904]
[1764953232420,0.001,88679.0,88671.0,0.01127764]
[1764953232632,0.001,88679.0,88676.0,0.011277]
[1764953232838,0.001,88679.0,88674.0,0.01127726]
[1764953233062,0.001,88679.0,88677.0,0.22553762]
[1764953233494,0.01127637,88681.0,88677.0,0.22553762]
[1764953233722,0.23677089,88694.0,88678.0,0.29883546]
[1764953233933,0.23677678,88692.0,88678.0,0.39456546]
[1764953234137,0.23677678,88692.0,88679.0,0.09573]
[1764953234252,0.323,88694.0,88679.0,0.09573]
[1764953234456,0.23676438,88696.0,88679.0,0.09573]
[1764953234656,0.45083434,88725.0,88679.0,0.09573]
[1764953234657,0.01127192,88716.0,88679.0,0.13645173]
[1764953234861,0.01127192,88716.0,88712.0,0.01127243]
[1764953235105,0.0002,88730.0,88712.0,0.01127243]
[1764953235106,0.00021904,88715.0,88714.0,0.03548]
[1764953235765,0.00021904,88715.0,88714.0,0.13121]
[1764953236151,0.00021904,88715.0,88714.0,0.15313173]
[1764953236560,0.00021904,88715.0,88714.0,0.13121]
[1764953236782,0.22566005,88715.0,88714.0,0.03548]
[1764953236983,0.01127294,88708.0,88705.0,0.03548]
[1764953237195,0.01127522,88690.0,88689.0,0.02192173]
[1764953237407,0.01127522,88690.0,88689.0,0.0188]
[1764953237685,0.01127522,88690.0,88688.0,0.03548]
[1764953237686,0.2367823,88690.0,88688.0,0.03548]
[1764953237832,0.23839517,88690.0,88688.0,0.03548]
[1764953238226,0.23839517,88690.0,88689.0,0.004]
[1764953239467,0.56139517,88690.0,88689.0,0.004]
[1764953239668,0.22555295,88671.0,88669.0,0.03548]
[1764953239846,0.22551752,88685.0,88674.0,0.01127726]
[1764953240047,0.01127548,88688.0,88679.0,0.01127662]
[1764953240275,0.01127548,88688.0,88675.0,0.03905855]
[1764953240276,0.01127611,88683.0,88676.0,0.25937104]
[1764953240531,0.22553932,88677.0,88675.0,0.01650428]
[1764953240710,0.22552824,88681.0,88678.0,0.01127675]
[1764953240862,0.01127637,88681.0,88677.0,0.01127688]
[1764953241068,0.00361287,88690.0,88685.0,0.01127586]
[1764953241322,0.01127586,88685.0,88679.0,0.02255325]
[1764953241524,0.01127471,88694.0,88689.0,0.2367814]
[1764953241737,0.01127471,88694.0,88687.0,0.0112756]
[1764953241738,0.01127497,88692.0,88687.0,0.0112756]
[1764953241941,0.01127497,88692.0,88685.0,0.01127586]
[1764953242185,0.323,88712.0,88686.0,0.00751412]
[1764953242358,0.01127408,88699.0,88696.0,0.01127446]
[1764953242558,0.01127459,88695.0,88689.0,0.01127535]
[1764953242798,0.01127497,88692.0,88689.0,0.01876]
[1764953243034,0.01127497,88692.0,88686.0,0.10324412]
[1764953243035,0.01127586,88685.0,88678.0,0.01876]
[1764953243183,0.22555288,88671.0,88663.0,0.01127866]
[1764953243380,0.22555288,88671.0,88661.0,0.0107009]
[1764953243752,0.01127828,88666.0,88661.0,0.02197981]
[1764953243974,0.22557404,88663.0,88661.0,0.0107009]
[1764953244191,0.22557404,88663.0,88620.0,0.5499078]
[1764953244192,0.01128069,88647.0,88639.0,0.22563307]
[1764953244432,0.04667,88662.0,88639.0,0.00039695]
[1764953244433,0.01128146,88641.0,88639.0,0.00039695]
[1764953244701,0.22563124,88641.0,88639.0,0.00039695]
[1764953244927,0.01128095,88645.0,88639.0,0.00039695]
[1764953245164,0.2256311,88641.0,88639.0,0.00039695]
[1764953245360,0.23851474,88645.0,88639.0,0.00039695]
[1764953245361,0.00161287,88645.0,88642.0,0.01128133]
[1764953245586,0.00161287,88645.0,88639.0,0.00039695]
[1764953245784,0.23690978,88642.0,88639.0,0.03492464]
[1764953245996,0.0112812,88643.0,88639.0,0.01167866]
[1764953246204,0.22563176,88640.0,88639.0,0.00039695]
[1764953246407,0.01128133,88642.0,88639.0,0.01167866]
[1764953246609,0.01128133,88642.0,88639.0,0.00039695]
[1764953246782,0.22563134,88641.0,88639.0,0.00039695]
[1764953247034,0.20776299,88640.0,88639.0,0.00039695]
[1764953247241,0.53237586,88640.0,88639.0,0.00039695]
[1764953247413,0.53337586,88640.0,88639.0,0.00039695]
[1764953247616,0.5653131,88640.0,88639.0,0.00039695]
[1764953247978,0.55429443,88640.0,88639.0,0.00039695]
[1764953248175,0.43456586,88640.0,88639.0,0.00039695]
[1764953248376,0.55529443,88640.0,88639.0,0.00039695]
[1764953248584,0.43556586,88640.0,88639.0,0.00039695]
[1764953248781,0.38813586,88640.0,88639.0,0.00039695]
[1764953248986,0.32561287,88640.0,88639.0,0.00039695]
[1764953249181,0.32561287,88640.0,88639.0,0.02525781]
[1764953249385,0.32561287,88640.0,88639.0,0.00039695]
[1764953251388,0.49600877,88640.0,88639.0,0.00039695]
[1764953251589,0.01128617,88604.0,88596.0,0.22574382]
[1764953251819,0.01128617,88604.0,88599.0,0.0112868]
[1764953251820,0.01128642,88602.0,88599.0,0.0112868]
[1764953252116,0.0112854,88610.0,88607.0,0.01128579]
[1764953252288,0.01128362,88624.0,88616.0,0.01128464]
[1764953252513,0.04743,88631.0,88616.0,0.01128464]
[1764953252514,0.23696589,88621.0,88617.0,0.01128451]
[1764953252725,0.01128413,88620.0,88616.0,0.23697504]
[1764953253047,0.323,88627.0,88621.0,0.011284]
[1764953253250,0.323,88627.0,88619.0,0.01128426]
[1764953253251,0.01128362,88624.0,88619.0,0.01128426]
[1764953253464,0.0112854,88610.0,88604.0,0.01128617]
[1764953253671,0.01128579,88607.0,88594.0,0.01128744]
[1764953253899,0.06352299,88621.0,88601.0,0.01128655]
[1764953254104,0.22574123,88598.0,88581.0,0.0112891]
[1764953254316,0.323,88597.0,88575.0,0.01876]
[1764953254517,0.01129228,88556.0,88550.0,0.01129305]
[1764953254725,0.00199998,88600.0,88559.0,0.23712856]
[1764953254726,0.33429126,88564.0,88559.0,0.23712856]
[1764953254936,0.01129139,88563.0,88558.0,0.01129203]
[1764953255116,0.323,88564.0,88560.0,0.01129177]
[1764953255357,0.22578627,88580.0,88573.0,0.01129012]
[1764953255562,0.09781,88599.0,88585.0,0.01128859]
[1764953255563,0.01128795,88590.0,88585.0,0.01128859]
[1764953255767,0.22574892,88594.0,88586.0,0.01128846]
[1764953255969,0.323,88598.0,88594.0,0.01128744]
[1764953256174,0.01128795,88590.0,88564.0,0.02258253]
[1764953256376,0.01128795,88590.0,88586.0,0.01128846]
[1764953256600,0.00161287,88590.0,88587.0,0.01128833]
[1764953256806,0.00161287,88590.0,88586.0,0.00011927]
[1764953256807,0.01128833,88587.0,88586.0,0.00011927]
[1764953256980,0.01128808,88589.0,88586.0,0.00011927]
[1764953257218,0.323,88595.0,88589.0,0.01128808]
[1764953257424,0.46830871,88623.0,88595.0,0.01128731]
[1764953257425,0.01128642,88602.0,88595.0,0.01128731]
[1764953257725,0.23702031,88600.0,88595.0,0.2386459]
[1764953257928,0.0112868,88599.0,88596.0,0.01128719]
[1764953258140,0.01128693,88598.0,88595.0,0.00161287]
[1764953258380,0.38552299,88587.0,88563.0,0.03348]
[1764953258599,0.38552299,88587.0,88553.0,0.01129267]
[1764953258810,0.01129228,88556.0,88552.0,0.01129279]
[1764953259021,0.01129216,88557.0,88552.0,0.01129279]
[1764953259022,0.01129216,88557.0,88553.0,0.01129267]
[1764953259240,0.01129177,88560.0,88552.0,0.00039734]
[1764953259241,0.01129241,88555.0,88552.0,0.00039734]
[1764953259494,0.22585089,88554.0,88552.0,0.00039734]
[1764953259702,0.23713927,88556.0,88552.0,0.00039734]
[1764953259908,0.22584992,88555.0,88552.0,0.00039734]
[1764953260119,0.323,88562.0,88560.0,0.22583559]
[1764953260325,0.323,88562.0,88556.0,0.01129228]
[1764953260326,0.01129177,88560.0,88557.0,0.01129216]
[1764953260540,0.323,88562.0,88559.0,0.22583595]
[1764953260739,0.323,88562.0,88560.0,0.22583481]
[1764953260966,0.01129063,88569.0,88560.0,0.00161287]
[1764953261165,0.01129139,88563.0,88560.0,0.00161287]
[1764953261367,0.23712007,88563.0,88560.0,0.00161287]
[1764953261571,0.22583275,88562.0,88560.0,0.00161287]
[1764953261773,0.01129241,88555.0,88552.0,0.00039734]
[1764953261980,0.01129241,88555.0,88552.0,0.23754507]
[1764953262189,0.22584791,88556.0,88552.0,0.01169013]
[1764953262190,0.23713964,88556.0,88552.0,0.01169013]
[1764953262319,0.06252299,88553.0,88552.0,0.00039734]
[1764953262735,0.01229152,88562.0,88559.0,0.0112919]
[1764953262934,0.01129037,88571.0,88566.0,0.22581779]
[1764953263138,0.01128986,88575.0,88571.0,0.01129037]
[1764953263335,0.01128897,88582.0,88576.0,0.22579243]
[1764953263553,0.01128872,88584.0,88571.0,0.00161287]
[1764953263554,0.01128884,88583.0,88575.0,0.01128986]
[1764953263768,0.22576421,88588.0,88575.0,0.00161287]
[1764953263769,0.01128948,88578.0,88575.0,0.00161287]
[1764953263981,0.22579429,88577.0,88575.0,0.00161287]
[1764953264388,0.0112891,88581.0,88575.0,0.00161287]
[1764953264590,0.01129088,88567.0,88559.0,0.23712862]
[1764953264795,0.04743,88581.0,88557.0,0.02258432]
[1764953264796,0.01129152,88562.0,88557.0,0.01129216]
[1764953264992,0.22584406,88557.0,88553.0,0.01129267]
[1764953265197,0.23713622,88557.0,88553.0,0.01129267]
[1764953265397,0.23713622,88557.0,88554.0,0.23714251]
[1764953265573,0.22585034,88555.0,88553.0,0.00161287]
[1764953265976,0.33429101,88566.0,88562.0,0.23712075]
[1764953266288,0.323,88566.0,88564.0,0.22582495]
[1764953266493,0.01129139,88563.0,88560.0,0.22583322]
[1764953266726,0.22578139,88582.0,88571.0,0.01129037]
[1764953266878,0.23708346,88577.0,88572.0,0.23709523]
[1764953267158,0.45147391,88600.0,88560.0,0.00161287]
[1764953267159,0.01129024,88572.0,88567.0,0.01129088]
[1764953267304,0.22581371,88569.0,88567.0,0.00161287]
[1764953267855,0.22581342,88569.0,88567.0,0.00161287]
[1764953268061,0.22580037,88574.0,88567.0,0.00161287]
[1764953268283,0.22579527,88576.0,88567.0,0.00161287]
[1764953268284,0.0112891,88581.0,88576.0,0.22579347]
[1764953268442,0.22579541,88576.0,88571.0,0.22580729]
[1764953268646,0.22581471,88569.0,88567.0,0.00461287]
[1764953268828,0.33428948,88578.0,88571.0,0.22580543]
[1764953269035,0.0112905,88570.0,88567.0,0.00461287]
[1764953269231,0.23709286,88573.0,88567.0,0.01590375]
[1764953269434,0.01128999,88574.0,88567.0,0.24172059]
[1764953269644,0.33428859,88585.0,88582.0,0.01128897]
[1764953269921,0.33428859,88585.0,88576.0,0.01128973]
[1764953269922,0.23706178,88585.0,88579.0,0.01128935]
[1764953270100,0.01128923,88580.0,88576.0,0.01128973]
[1764953270316,0.22578334,88581.0,88578.0,0.01128948]
[1764953270519,0.01128935,88579.0,88571.0,0.23709628]
[1764953270722,0.01128986,88575.0,88572.0,0.01129024]
[1764953270940,0.01128935,88579.0,88574.0,0.01128999]
[1764953271245,0.23706485,88584.0,88576.0,0.01128973]
[1764953271455,0.001,88585.0,88583.0,0.22738779]
[1764953271685,0.001,88585.0,88584.0,0.02192173]
[1764953271900,0.001,88585.0,88584.0,0.00161287]
[1764953272531,0.22578969,88578.0,88577.0,0.0261687]
[1764953272742,0.01128999,88574.0,88571.0,0.00039734]
[1764953272952,0.22580293,88573.0,88572.0,0.04969157]
[1764953273169,0.01128973,88576.0,88571.0,0.01168771]
[1764953273376,0.401,88579.0,88575.0,0.01128986]
[1764953273583,0.41128935,88579.0,88575.0,0.01128986]
[1764953273785,0.22580304,88573.0,88571.0,0.00039734]
[1764953274000,0.22580304,88573.0,88571.0,0.00139734]
[1764953274161,0.23709285,88574.0,88571.0,0.00139734]
[1764953274162,0.01128999,88574.0,88571.0,0.00139734]
[1764953274361,0.23708757,88575.0,88572.0,0.01129024]
[1764953274564,0.22580305,88573.0,88571.0,0.00039734]
[1764953274976,0.01128706,88597.0,88586.0,0.01128846]
[1764953275185,0.01128821,88588.0,88580.0,0.01128923]
[1764953275355,0.22576426,88588.0,88583.0,0.23706572]
[1764953275539,0.01128744,88594.0,88591.0,0.01128782]
[1764953275736,0.0112877,88592.0,88587.0,0.04716833]
[1764953275934,0.22576247,88589.0,88587.0,0.03588]
[1764953276157,0.01128833,88587.0,88583.0,0.01290171]
[1764953276358,0.01128808,88589.0,88584.0,0.237063]
[1764953276564,0.01128795,88590.0,88584.0,0.237063]
[1764953276565,0.0112877,88592.0,88587.0,0.01128833]
[1764953276766,0.22575003,88594.0,88587.0,0.01128833]
[1764953276767,0.01128744,88594.0,88588.0,0.22576335]
[1764953276992,0.23704051,88593.0,88589.0,0.22576166]
[1764953277233,0.323,88597.0,88589.0,0.22576166]
[1764953277234,0.06252299,88596.0,88593.0,0.2257492]
[1764953277422,0.01128808,88589.0,88583.0,0.22577624]
[1764953277625,0.01128846,88586.0,88571.0,0.00039734]
[1764953277827,0.01128973,88576.0,88572.0,0.01129024]
[1764953278031,0.01128986,88575.0,88571.0,0.00039734]
[1764953278348,0.2258032,88573.0,88571.0,0.00039734]
[1764953278558,0.01128999,88574.0,88571.0,0.00039734]
[1764953278901,0.01128859,88585.0,88575.0,0.01128986]
[1764953279131,0.01128923,88580.0,88575.0,0.01290273]
[1764953279345,0.01010572,88580.0,88576.0,0.01128973]
[1764953279551,0.01010572,88580.0,88575.0,0.00161287]
[1764953279552,0.01128935,88579.0,88575.0,0.23869967]
[1764953279766,0.01128948,88578.0,88571.0,0.00039734]
[1764953279974,0.22580499,88572.0,88571.0,0.00039734]
[1764953280402,0.39891798,88572.0,88571.0,0.00039734]
[1764953280623,0.66811656,88572.0,88571.0,0.00039734]
[1764953280849,0.01011858,88572.0,88571.0,0.16014021]
[1764953281058,0.001,88575.0,88574.0,0.22579989]
[1764953281279,0.323,88593.0,88585.0,0.01128859]
[1764953281280,0.01128808,88589.0,88585.0,0.01128859]
[1764953281504,0.01012264,88588.0,88586.0,0.23705776]
[1764953281724,0.323,88599.0,88586.0,0.23705776]
[1764953281725,0.01012264,88594.0,88593.0,0.22575147]
[1764953281941,0.01012264,88598.0,88597.0,0.22574127]
[1764953282152,0.23701131,88604.0,88597.0,0.22574127]
[1764953282153,0.01128642,88602.0,88599.0,0.0112868]
[1764953282430,0.01013188,88601.0,88600.0,0.01128668]
[1764953282648,0.01013188,88601.0,88596.0,0.22574315]
[1764953282649,0.22576496,88588.0,88586.0,0.03588]
[1764953282867,0.01128731,88595.0,88586.0,0.01290133]
[1764953283114,0.3,88593.0,88591.0,0.23704438]
[1764953283318,0.01128604,88605.0,88595.0,0.22574616]
[1764953283543,0.01128668,88600.0,88596.0,0.23702918]
[1764953283735,0.0101401,88599.0,88596.0,0.23702918]
[1764953283953,0.0101401,88598.0,88597.0,0.09618]
[1764953284105,0.00011893,88605.0,88604.0,0.28928631]
[1764953284306,0.00011893,88605.0,88604.0,0.38546631]
[1764953284514,0.00011893,88605.0,88604.0,0.40738804]
[1764953284678,0.01128235,88634.0,88619.0,0.02192173]
[1764953284881,0.016955,88640.0,88619.0,0.00161287]
[1764953284882,0.22568054,88621.0,88619.0,0.00161287]
[1764953285101,0.22570681,88611.0,88605.0,0.22571935]
[1764953285318,0.2370007,88608.0,88606.0,0.03508]
[1764953285522,0.22577185,88585.0,88583.0,0.02192173]
[1764953285736,0.01128846,88586.0,88584.0,0.00578017]
[1764953285937,0.01128846,88586.0,88584.0,0.00739304]
[1764953285938,0.22577041,88586.0,88584.0,0.00739304]
[1764953286155,0.22577041,88586.0,88583.0,0.00011893]
[1764953286156,0.2257744,88584.0,88583.0,0.00011893]
[1764953286379,0.2359076,88584.0,88583.0,0.00011893]
[1764953286608,0.45386059,88584.0,88583.0,0.00011893]
[1764953286864,0.47719704,88584.0,88583.0,0.00011893]
[1764953287293,0.47819704,88584.0,88583.0,0.00011893]
[1764953287508,0.51887561,88584.0,88583.0,0.00011893]
[1764953287716,0.2371411,88555.0,88552.0,0.01129279]
[1764953287923,0.01129126,88564.0,88552.0,0.01129279]
[1764953287924,0.22581519,88568.0,88561.0,0.01129165]
[1764953288133,0.01013021,88566.0,88565.0,0.23711168]
[1764953288348,0.01013021,88571.0,88570.0,0.22581009]
[1764953288547,0.01013021,88577.0,88574.0,0.23708777]
[1764953288818,0.02141982,88577.0,88574.0,0.00161287]
[1764953288986,0.01129037,88571.0,88566.0,0.23710888]
[1764953289184,0.22580116,88574.0,88567.0,0.01129088]
[1764953289384,0.02142337,88573.0,88569.0,0.01129063]
[1764953289585,0.02142337,88573.0,88567.0,0.00161287]
[1764953289586,0.0112905,88570.0,88567.0,0.00161287]
[1764953289800,0.01013325,88571.0,88569.0,0.22581264]
[1764953290054,0.01128986,88575.0,88571.0,0.23709785]
[1764953290249,0.0112905,88570.0,88566.0,0.001]
[1764953290456,0.23710554,88569.0,88566.0,0.001]
[1764953290759,0.23710554,88569.0,88563.0,0.01129139]
[1764953290764,0.2371118,88566.0,88563.0,0.01129139]
[1764953290936,0.01129063,88569.0,88563.0,0.01129139]
[1764953290937,0.09151,88581.0,88564.0,0.01129126]
[1764953291146,0.04667,88590.0,88570.0,0.23710059]
[1764953291147,0.001,88571.0,88570.0,0.23710059]
[1764953291348,0.001,88571.0,88570.0,0.01290337]
[1764953291573,0.001,88571.0,88570.0,0.17103337]
[1764953291772,0.001,88571.0,88570.0,0.18695135]
[1764953291945,0.001,88571.0,88570.0,0.2155361]
[1764953292146,0.001,88571.0,88570.0,0.17103337]
[1764953292458,0.01013772,88582.0,88576.0,0.23708344]
[1764953292640,0.01013772,88581.0,88577.0,0.01128961]
[1764953292800,0.01128897,88582.0,88576.0,0.23708344]
[1764953292801,0.01128935,88579.0,88576.0,0.00161287]
[1764953293162,0.01013772,88578.0,88576.0,0.00161287]
[1764953293367,0.01013772,88577.0,88576.0,0.00161287]
[1764953293549,0.3,88578.0,88575.0,0.01128986]
[1764953293550,0.3,88578.0,88577.0,0.28935511]
[1764953293786,0.23703113,88596.0,88591.0,0.01128782]
[1764953293990,0.23703113,88596.0,88588.0,0.01128821]
[1764953293991,0.01128782,88591.0,88585.0,0.01128859]
[1764953294202,0.01128923,88580.0,88577.0,0.00161287]
[1764953294421,0.01129126,88564.0,88561.0,0.0336]
[1764953294648,0.01014524,88565.0,88562.0,0.01129152]
[1764953294848,0.22580557,88572.0,88565.0,0.01129114]
[1764953294849,0.01014551,88569.0,88565.0,0.01129114]
[1764953295005,0.01014551,88568.0,88565.0,0.01129114]
[1764953295168,0.01129114,88565.0,88562.0,0.05134524]
[1764953295375,0.22582794,88563.0,88562.0,0.05134524]
[1764953295669,0.23597345,88563.0,88562.0,0.00039734]
[1764953295855,0.23597345,88563.0,88562.0,0.09819021]
[1764953295856,0.01014551,88563.0,88562.0,0.09819021]
[1764953296091,0.01129024,88572.0,88562.0,0.09819021]
[1764953296092,0.02144217,88568.0,88565.0,0.01129114]
[1764953296319,0.01128961,88577.0,88574.0,0.01128999]
[1764953296529,0.0112905,88570.0,88566.0,0.2371113]
[1764953296732,0.22579511,88576.0,88570.0,0.0112905]
[1764953296943,0.01129012,88573.0,88567.0,0.23710647]
[1764953297149,0.01015592,88573.0,88572.0,0.01129024]
[1764953297348,0.01128948,88578.0,88575.0,0.23708682]
[1764953297609,0.01128948,88578.0,88572.0,0.01290311]
[1764953297810,0.323,88593.0,88572.0,0.01290311]
[1764953297811,0.02144242,88582.0,88578.0,0.01128948]
[1764953298099,0.02144182,88581.0,88576.0,0.01128973]
[1764953298298,0.01128923,88580.0,88576.0,0.01128973]
[1764953298506,0.0112891,88581.0,88576.0,0.01128973]
[1764953298709,0.23705776,88586.0,88578.0,0.01128948]
[1764953298904,0.01128923,88580.0,88576.0,0.00161287]
[1764953299117,0.01128795,88590.0,88578.0,0.01128948]
[1764953299319,0.01128731,88595.0,88578.0,0.00161287]
[1764953299522,0.24718163,88596.0,88589.0,0.22575996]
[1764953299728,0.22572995,88602.0,88597.0,0.22574119]
[1764953299978,0.01128489,88614.0,88610.0,0.22570803]
[1764953300177,0.02914193,88626.0,88610.0,0.22570803]
[1764953300178,0.01128298,88629.0,88624.0,0.2256725]
[1764953300382,0.01128298,88629.0,88621.0,0.011284]
[1764953300603,0.01128464,88616.0,88610.0,0.00161287]
[1764953300810,0.01128464,88616.0,88590.0,0.046281]
[1764953300811,0.04667,88622.0,88590.0,0.05756895]
[1764953301003,0.04667,88622.0,88590.0,0.01128795]
[1764953301004,0.01128668,88600.0,88590.0,0.01128795]
[1764953301202,0.01128668,88600.0,88586.0,0.01876]
[1764953301203,0.0112868,88599.0,88594.0,0.22574704]
[1764953301442,0.23702231,88600.0,88596.0,0.01128719]
[1764953301638,0.01128744,88594.0,88590.0,0.01128795]
[1764953301760,0.01128706,88597.0,88593.0,0.01128757]
[1764953301987,0.01128706,88597.0,88594.0,0.01128744]
[1764953302284,0.00011904,88597.0,88596.0,0.00161287]
[1764953302485,0.01128311,88628.0,88622.0,0.01128387]
[1764953302705,0.00011911,88628.0,88626.0,0.22566693]
[1764953302908,0.00011911,88628.0,88627.0,0.03749287]
[1764953303313,0.22578142,88628.0,88627.0,0.03131402]
[1764953303520,0.01128387,88622.0,88619.0,0.03588]
[1764953303729,0.01140222,88628.0,88612.0,0.09618]
[1764953303929,0.00011911,88628.0,88625.0,0.01128349]
[1764953304137,0.01140222,88628.0,88624.0,0.01128362]
[1764953304362,0.01140222,88628.0,88625.0,0.01128349]
[1764953304565,0.00011911,88628.0,88626.0,0.00564189]
[1764953304798,0.00011911,88628.0,88626.0,0.23292098]
[1764953304998,0.00011911,88628.0,88626.0,0.00925476]
[1764953305258,0.00011911,88628.0,88627.0,0.22566486]
[1764953305872,0.00111911,88628.0,88627.0,0.22566486]
[1764953306082,0.00111911,88628.0,88627.0,0.00161287]
[1764953306260,0.01128477,88615.0,88610.0,0.23699272]
[1764953306459,0.01128477,88615.0,88609.0,0.03588]
[1764953306460,0.01128489,88614.0,88609.0,0.03588]
[1764953306757,0.22570725,88611.0,88609.0,0.03588]
[1764953307666,0.01128502,88613.0,88609.0,0.27287577]
[1764953307819,0.01128502,88613.0,88610.0,0.05324519]
[1764953308020,0.01128426,88619.0,88615.0,0.01128477]
[1764953308380,0.22570815,88610.0,88609.0,0.003]
[1764953308583,0.28823114,88610.0,88609.0,0.003]
[1764953308887,0.0112877,88592.0,88587.0,0.23705427]
[1764953309141,0.01128629,88603.0,88599.0,0.0112868]
[1764953309346,0.01128655,88601.0,88595.0,0.22574527]
[1764953309545,0.01128706,88597.0,88594.0,0.01128744]
[1764953309721,0.01128795,88590.0,88587.0,0.00161287]
[1764953310141,0.22576261,88589.0,88587.0,0.00173191]
[1764953310480,0.22576255,88589.0,88587.0,0.02674125]
[1764953310886,0.22576255,88589.0,88587.0,0.00173191]
[1764953311311,0.01128744,88594.0,88587.0,0.00173191]
[1764953311312,0.14437,88624.0,88592.0,0.0112877]
[1764953311481,0.22573363,88600.0,88592.0,0.00161287]
[1764953311681,0.01228655,88601.0,88597.0,0.01128706]
[1764953311882,0.01128528,88611.0,88607.0,0.01128579]
[1764953312086,0.22566995,88625.0,88611.0,0.22570561]
[1764953312285,0.01872,88648.0,88632.0,0.2256513]
[1764953312485,0.54671743,88655.0,88632.0,0.2256513]
[1764953312486,0.01128197,88637.0,88632.0,0.00161287]
[1764953312735,0.22570374,88612.0,88593.0,0.09996]
[1764953312935,0.2257269,88603.0,88601.0,0.03588]
[1764953313184,0.22572679,88603.0,88601.0,0.03588]
[1764953313326,0.22572781,88603.0,88601.0,0.03588]
[1764953313522,0.41853,88614.0,88586.0,0.01128846]
[1764953313719,0.23703209,88596.0,88590.0,0.22575911]
[1764953313921,0.23703433,88595.0,88591.0,0.01128782]
[1764953314165,0.23703702,88594.0,88590.0,0.23704626]
[1764953314378,0.01128731,88595.0,88590.0,0.23704626]
[1764953314379,0.01128731,88595.0,88591.0,0.01128782]
[1764953314577,0.01128795,88590.0,88586.0,0.01302037]
[1764953314750,0.22576676,88587.0,88586.0,0.00173191]
[1764953314949,0.01128642,88602.0,88599.0,0.23702239]
[1764953315154,0.22572777,88603.0,88599.0,0.22573562]
[1764953315354,0.22569991,88614.0,88590.0,0.22575712]
[1764953315598,0.01128706,88597.0,88593.0,0.22575073]
[1764953315800,0.22573168,88601.0,88598.0,0.22573732]
[1764953315947,0.0112868,88599.0,88593.0,0.00161287]
[1764953316145,0.01128719,88596.0,88593.0,0.00161287]
[1764953316367,0.0112868,88599.0,88594.0,0.01128744]
[1764953316576,0.01128604,88605.0,88602.0,0.22572816]
[1764953316776,0.22572275,88605.0,88603.0,0.0248302]
[1764953317026,0.22571115,88609.0,88606.0,0.01128591]
[1764953317174,0.22570815,88610.0,88606.0,0.01128591]
[1764953317376,0.01128528,88611.0,88603.0,0.01289916]
[1764953317377,0.01128566,88608.0,88603.0,0.01289916]
[1764953317720,0.22572089,88605.0,88603.0,0.00161287]
[1764953317933,0.0112877,88592.0,88580.0,0.22578425]
[1764953318137,0.22576421,88588.0,88586.0,0.0238383]
[1764953318350,0.22576421,88588.0,88586.0,0.00011904]
[1764953318706,0.23705045,88589.0,88586.0,0.00011904]
[1764953318901,0.01128731,88595.0,88590.0,0.23704599]
[1764953319104,0.01128782,88591.0,88586.0,0.00173191]
[1764953319331,0.001,88588.0,88587.0,0.02500807]
[1764953319688,0.001,88588.0,88586.0,0.00173191]
[1764953319892,0.22676557,88588.0,88586.0,0.00173191]
[1764953320148,0.22676557,88588.0,88586.0,0.00011904]
[1764953320728,0.22576557,88588.0,88586.0,0.00011904]
[1764953321766,0.32129557,88588.0,88586.0,0.00011904]
[1764953321918,0.32229557,88588.0,88586.0,0.00011904]
[1764953322328,0.59260299,88587.0,88586.0,0.00011904]
[1764953322746,1.09919299,88587.0,88586.0,0.00011904]
[1764953322944,1.13983156,88587.0,88586.0,0.00011904]
[1764953323198,1.14996225,88587.0,88586.0,0.00011904]
[1764953323420,0.77960056,88587.0,88586.0,0.00011904]
[1764953323736,0.76088056,88587.0,88586.0,0.00011904]
[1764953323962,0.77960056,88587.0,88586.0,0.00011904]
[1764953324169,0.0112933,88548.0,88542.0,0.01129407]
[1764953324372,0.01129241,88555.0,88551.0,0.01129292]
[1764953324595,0.01129241,88555.0,88552.0,0.01129279]
[1764953324788,0.01129216,88557.0,88553.0,0.01129267]
[1764953325067,0.01129216,88557.0,88553.0,0.02871661]
[1764953325258,0.23713961,88556.0,88553.0,0.02871661]
[1764953325410,0.22584933,88555.0,88553.0,0.02871661]
[1764953325758,0.01129216,88557.0,88553.0,0.04000928]
[1764953325958,0.01129369,88545.0,88542.0,0.01169141]
[1764953326168,0.01129369,88545.0,88542.0,0.00201021]
[1764953326579,0.22684557,88557.0,88551.0,0.01129292]
[1764953326780,0.22684557,88557.0,88542.0,0.00201021]
[1764953326781,0.01129279,88552.0,88547.0,0.23716123]
[1764953326954,0.23714968,88552.0,88549.0,0.01129318]
[1764953327173,0.23714968,88552.0,88550.0,0.04969173]
[1764953327577,0.23714968,88552.0,88542.0,0.00201021]
[1764953327578,0.01129369,88545.0,88542.0,0.00201021]
[1764953327804,0.22587839,88544.0,88542.0,0.00201021]
[1764953328034,0.22587839,88544.0,88542.0,0.00039734]
[1764953328234,0.09483,88543.0,88542.0,0.00039734]
[1764953328388,0.22587839,88544.0,88542.0,0.00039734]
[1764953328786,0.54210299,88543.0,88542.0,0.00039734]
[1764953328987,0.56402156,88543.0,88542.0,0.00039734]
[1764953331226,0.23727362,88506.0,88482.0,0.09365]
[1764953331433,0.03458,88501.0,88490.0,0.01370071]